[Event "Titled Tuesday Blitz August 1 Early 2023"]
[White "Naroditsky, Daniel"]
[Black "Rustemov, Alexander"]
[WhiteFideId "2026961"]
[BlackFideId "4119002"]
[WhiteElo "3091"]
[BlackElo "2844"]
[Result "1-0"]
[Round "9"]
[TimeControl "180+1"]
[Date "2023.08.01"]
[WhiteClock "0:00:03"]
[BlackClock "0:00:00"]
[Board "13"]

1. Nf3 {[%clk 0:02:17]}  d5 {[%clk 0:02:18]} 2. e3 {[%clk 0:02:16]}  Nf6 {[%clk 0:02:18]} 3. c4 {[%clk 0:02:16]}  c6 {[%clk 0:02:18]} 4. Nc3 {[%clk 0:02:15]}  a6 {[%clk 0:02:18]} 5. Qc2 {[%clk 0:02:15]}  b5 {[%clk 0:02:14]} 6. b3 {[%clk 0:02:15]}  Bg4 {[%clk 0:02:07]} 7. Ne5 {[%clk 0:02:07]}  e6 {[%clk 0:01:56]} 8. Nxg4 {[%clk 0:01:49]}  Nxg4 {[%clk 0:01:57]} 9. Be2 {[%clk 0:01:48]}  Nf6 {[%clk 0:01:56]} 10. Bb2 {[%clk 0:01:49]}  Nbd7 {[%clk 0:01:54]} 11. O-O {[%clk 0:01:47]}  Bd6 {[%clk 0:01:53]} 12. d4 {[%clk 0:01:32]}  O-O {[%clk 0:01:52]} 13. Rac1 {[%clk 0:01:32]}  Qe7 {[%clk 0:01:44]} 14. Bd3 {[%clk 0:01:29]}  Ba3 {[%clk 0:01:40]} 15. Bxa3 {[%clk 0:01:26]}  Qxa3 {[%clk 0:01:39]} 16. e4 {[%clk 0:01:27]}  dxc4 {[%clk 0:01:31]} 17. bxc4 {[%clk 0:01:26]}  e5 {[%clk 0:01:31]} 18. d5 {[%clk 0:01:25]}  b4 {[%clk 0:01:13]} 19. Nb1 {[%clk 0:01:22]}  Qa5 {[%clk 0:01:11]} 20. Nd2 {[%clk 0:01:20]}  Nc5 {[%clk 0:01:09]} 21. Nb3 {[%clk 0:01:02]}  Qb6 {[%clk 0:01:09]} 22. Kh1 {[%clk 0:01:03]}  a5 {[%clk 0:01:09]} 23. f4 {[%clk 0:01:02]}  Nfd7 {[%clk 0:01:02]} 24. Rb1 {[%clk 0:00:57]}  exf4 {[%clk 0:00:57]} 25. e5 {[%clk 0:00:52]}  Nxd3 {[%clk 0:00:48]} 26. Qxd3 {[%clk 0:00:52]}  Nxe5 {[%clk 0:00:48]} 27. Qe4 {[%clk 0:00:53]}  Rfe8 {[%clk 0:00:42]} 28. Qxf4 {[%clk 0:00:43]}  cxd5 {[%clk 0:00:39]} 29. cxd5 {[%clk 0:00:44]}  Rad8 {[%clk 0:00:34]} 30. Rbd1 {[%clk 0:00:27]}  a4 {[%clk 0:00:32]} 31. Nd2 {[%clk 0:00:12]}  Rxd5 {[%clk 0:00:28]} 32. Nc4 {[%clk 0:00:13]}  Qe6 {[%clk 0:00:17]} 33. Rxd5 {[%clk 0:00:04]}  Qxd5 {[%clk 0:00:16]} 34. Nxe5 {[%clk 0:00:05]}  Rxe5 {[%clk 0:00:15]} 35. Qxb4 {[%clk 0:00:05]}  Qc6 {[%clk 0:00:09]} 36. Qb8+ {[%clk 0:00:02]}  Re8 {[%clk 0:00:09]} 37. Qa7 {[%clk 0:00:02]}  Rf8 {[%clk 0:00:08]} 38. Qd4 {[%clk 0:00:03]}  h6 {[%clk 0:00:06]} 39. h3 {[%clk 0:00:03]}  Rc8 {[%clk 0:00:05]} 40. Qf4 {[%clk 0:00:02]}  Rf8 {[%clk 0:00:05]} 41. Qd4 {[%clk 0:00:03]}  a3 {[%clk 0:00:03]} 42. Rf2 {[%clk 0:00:02]}  Qe6 {[%clk 0:00:03]} 43. Qf4 {[%clk 0:00:02]}  Qd5 {[%clk 0:00:02]} 44. Kh2 {[%clk 0:00:03]}  Ra8 {[%clk 0:00:02]} 45. Qg3 {[%clk 0:00:03]}  Rd8 {[%clk 0:00:01]} 46. Qxa3 {[%clk 0:00:03]}  Qd6+ {[%clk 0:00:02]} 47. Qxd6 {[%clk 0:00:03]}  Rxd6 {[%clk 0:00:03]} 48. a4 {[%clk 0:00:04]}  Ra6 {[%clk 0:00:03]} 49. Ra2 {[%clk 0:00:05]}  f5 {[%clk 0:00:03]} 50. Kg3 {[%clk 0:00:05]}  g5 {[%clk 0:00:03]} 51. Kf3 {[%clk 0:00:06]}  Kf7 {[%clk 0:00:04]} 52. Ke3 {[%clk 0:00:07]}  Ke6 {[%clk 0:00:04]} 53. Kd4 {[%clk 0:00:08]}  f4 {[%clk 0:00:04]} 54. Kc5 {[%clk 0:00:08]}  Kf5 {[%clk 0:00:03]} 55. a5 {[%clk 0:00:09]}  h5 {[%clk 0:00:03]} 56. Kb5 {[%clk 0:00:10]}  Ra8 {[%clk 0:00:03]} 57. a6 {[%clk 0:00:10]}  g4 {[%clk 0:00:04]} 58. hxg4+ {[%clk 0:00:11]}  hxg4 {[%clk 0:00:04]} 59. Kb6 {[%clk 0:00:09]}  f3 {[%clk 0:00:04]} 60. g3 {[%clk 0:00:10]}  Ke4 {[%clk 0:00:05]} 61. Ra4+ {[%clk 0:00:08]}  Ke3 {[%clk 0:00:05]} 62. Rxg4 {[%clk 0:00:09]}  Kf2 {[%clk 0:00:05]} 63. Kb7 {[%clk 0:00:07]}  Rh8 {[%clk 0:00:03]} 64. Rg7 {[%clk 0:00:03]}  Kg2 {[%clk 0:00:02]} 65. g4 {[%clk 0:00:01]}  Kg3 {[%clk 0:00:01]} 66. g5 {[%clk 0:00:01]}  f2 {[%clk 0:00:01]} 67. Rf7 {[%clk 0:00:02]}  Rg8 {[%clk 0:00:01]} 68. a7 {[%clk 0:00:02]}  Kg2 {[%clk 0:00:00]} 69. a8=Q {[%clk 0:00:03]} 1-0


[Site "https://www.chess.com"]

[Event "Titled Tuesday Blitz August 1 Early 2023"]
[White "Hovhannisyan, Robert"]
[Black "Kaczur, Florian"]
[WhiteFideId "13302507"]
[BlackFideId "705098"]
[WhiteElo "2961"]
[BlackElo "2779"]
[Result "0-1"]
[Round "9"]
[TimeControl "180+1"]
[Date "2023.08.01"]
[WhiteClock "0:00:00"]
[BlackClock "0:00:36"]
[Board "15"]

1. e4 {[%clk 0:03:00]}  c5 {[%clk 0:02:52]} 2. Nf3 {[%clk 0:03:00]}  Nc6 {[%clk 0:02:51]} 3. d4 {[%clk 0:02:55]}  cxd4 {[%clk 0:02:51]} 4. Nxd4 {[%clk 0:02:55]}  Qb6 {[%clk 0:02:49]} 5. Nxc6 {[%clk 0:02:54]}  Qxc6 {[%clk 0:02:47]} 6. Bd3 {[%clk 0:02:53]}  d6 {[%clk 0:02:43]} 7. Nc3 {[%clk 0:02:51]}  Bd7 {[%clk 0:02:43]} 8. O-O {[%clk 0:02:48]}  Nf6 {[%clk 0:02:42]} 9. Bg5 {[%clk 0:02:48]}  Qc5 {[%clk 0:02:38]} 10. Bxf6 {[%clk 0:02:35]}  gxf6 {[%clk 0:02:37]} 11. Nd5 {[%clk 0:02:36]}  h5 {[%clk 0:02:24]} 12. b4 {[%clk 0:02:36]}  Qc8 {[%clk 0:02:20]} 13. c4 {[%clk 0:02:34]}  Bg7 {[%clk 0:02:19]} 14. Rc1 {[%clk 0:02:34]}  e6 {[%clk 0:02:15]} 15. Nf4 {[%clk 0:02:26]}  Bh6 {[%clk 0:02:12]} 16. Nxh5 {[%clk 0:02:19]}  Bxc1 {[%clk 0:02:10]} 17. Nxf6+ {[%clk 0:02:14]}  Ke7 {[%clk 0:02:09]} 18. Qxc1 {[%clk 0:01:57]}  Kxf6 {[%clk 0:02:08]} 19. c5 {[%clk 0:01:52]}  dxc5 {[%clk 0:01:49]} 20. Qf4+ {[%clk 0:01:31]}  Ke7 {[%clk 0:01:48]} 21. e5 {[%clk 0:01:32]}  Qf8 {[%clk 0:01:44]} 22. h3 {[%clk 0:00:56]}  Qh6 {[%clk 0:01:39]} 23. Qc4 {[%clk 0:00:51]}  b6 {[%clk 0:01:27]} 24. Be4 {[%clk 0:00:43]}  Rag8 {[%clk 0:01:25]} 25. Rd1 {[%clk 0:00:36]}  Qxh3 {[%clk 0:01:15]} 26. Kf1 {[%clk 0:00:32]}  Qg4 {[%clk 0:01:09]} 27. Rxd7+ {[%clk 0:00:11]}  Kxd7 {[%clk 0:01:09]} 28. Qd3+ {[%clk 0:00:12]}  Ke8 {[%clk 0:01:05]} 29. Bc6+ {[%clk 0:00:09]}  Kf8 {[%clk 0:01:04]} 30. Qd8+ {[%clk 0:00:08]}  Kg7 {[%clk 0:01:05]} 31. Qf6+ {[%clk 0:00:09]}  Kh7 {[%clk 0:01:04]} 32. Bf3 {[%clk 0:00:06]}  Qg6 {[%clk 0:00:55]} 33. Qf4 {[%clk 0:00:06]}  Kg7 {[%clk 0:00:50]} 34. Be4 {[%clk 0:00:05]}  Qh6 {[%clk 0:00:46]} 35. Qg3+ {[%clk 0:00:04]}  Kf8 {[%clk 0:00:46]} 36. Qd3 {[%clk 0:00:04]}  Qf4 {[%clk 0:00:43]} 37. g3 {[%clk 0:00:03]}  Qc1+ {[%clk 0:00:39]} 38. Ke2 {[%clk 0:00:02]}  Qb2+ {[%clk 0:00:39]} 39. Kf3 {[%clk 0:00:02]}  Qxe5 {[%clk 0:00:40]} 40. bxc5 {[%clk 0:00:02]}  bxc5 {[%clk 0:00:39]} 41. Kg2 {[%clk 0:00:00]}  Kg7 {[%clk 0:00:36]} 0-1


[Site "https://www.chess.com"]

[Event "Titled Tuesday Blitz August 1 Early 2023"]
[White "Zemlyanskii, Ivan"]
[Black "Ning, Kaiyu"]
[WhiteFideId "24249971"]
[BlackFideId "8614750"]
[WhiteElo "2935"]
[BlackElo "2765"]
[Result "1/2-1/2"]
[Round "9"]
[TimeControl "180+1"]
[Date "2023.08.01"]
[WhiteClock "0:00:00"]
[BlackClock "0:00:08"]
[Board "17"]

1. d4 {[%clk 0:03:00]}  Nf6 {[%clk 0:02:59]} 2. c4 {[%clk 0:03:00]}  e6 {[%clk 0:03:00]} 3. Bf4 {[%clk 0:03:00]}  d5 {[%clk 0:02:59]} 4. Nc3 {[%clk 0:03:00]}  Bb4 {[%clk 0:02:56]} 5. Qa4+ {[%clk 0:02:59]}  Nc6 {[%clk 0:02:55]} 6. e3 {[%clk 0:02:59]}  O-O {[%clk 0:02:55]} 7. Nf3 {[%clk 0:03:00]}  Ne4 {[%clk 0:02:54]} 8. Qc2 {[%clk 0:02:58]}  Nxc3 {[%clk 0:02:40]} 9. bxc3 {[%clk 0:02:59]}  Bd6 {[%clk 0:02:40]} 10. Bg3 {[%clk 0:02:56]}  Bxg3 {[%clk 0:02:39]} 11. hxg3 {[%clk 0:02:57]}  h6 {[%clk 0:02:40]} 12. g4 {[%clk 0:02:47]}  dxc4 {[%clk 0:02:18]} 13. Bxc4 {[%clk 0:02:40]}  Na5 {[%clk 0:01:55]} 14. Bd3 {[%clk 0:02:36]}  f6 {[%clk 0:01:56]} 15. O-O {[%clk 0:02:12]}  b6 {[%clk 0:01:54]} 16. Nh4 {[%clk 0:02:12]}  Rf7 {[%clk 0:01:44]} 17. Bh7+ {[%clk 0:02:04]}  Kh8 {[%clk 0:01:40]} 18. Be4 {[%clk 0:01:53]}  Bb7 {[%clk 0:01:37]} 19. Ng6+ {[%clk 0:01:47]}  Kg8 {[%clk 0:01:37]} 20. Nf4 {[%clk 0:01:46]}  e5 {[%clk 0:01:27]} 21. Ng6 {[%clk 0:01:22]}  exd4 {[%clk 0:01:22]} 22. cxd4 {[%clk 0:01:21]}  Bxe4 {[%clk 0:01:19]} 23. Qxe4 {[%clk 0:01:22]}  Qe8 {[%clk 0:01:19]} 24. Qf3 {[%clk 0:01:19]}  Rd8 {[%clk 0:01:14]} 25. Rac1 {[%clk 0:01:17]}  c6 {[%clk 0:01:14]} 26. Rfd1 {[%clk 0:01:13]}  Rfd7 {[%clk 0:01:13]} 27. Nf4 {[%clk 0:01:12]}  Qf7 {[%clk 0:01:13]} 28. Rc2 {[%clk 0:01:09]}  Rd6 {[%clk 0:01:13]} 29. Qe2 {[%clk 0:01:05]}  c5 {[%clk 0:01:04]} 30. d5 {[%clk 0:01:05]}  g5 {[%clk 0:01:03]} 31. Nh5 {[%clk 0:00:58]}  Rxd5 {[%clk 0:01:02]} 32. Rxd5 {[%clk 0:00:58]}  Rxd5 {[%clk 0:01:02]} 33. Qf3 {[%clk 0:00:59]}  Rd6 {[%clk 0:00:52]} 34. Qa8+ {[%clk 0:00:58]}  Kh7 {[%clk 0:00:52]} 35. Qe4+ {[%clk 0:00:55]}  Kg8 {[%clk 0:00:52]} 36. f4 {[%clk 0:00:50]}  Nc6 {[%clk 0:00:38]} 37. Rf2 {[%clk 0:00:46]}  c4 {[%clk 0:00:22]} 38. fxg5 {[%clk 0:00:33]}  hxg5 {[%clk 0:00:23]} 39. Qf5 {[%clk 0:00:31]}  Ne5 {[%clk 0:00:15]} 40. Nxf6+ {[%clk 0:00:20]}  Qxf6 {[%clk 0:00:15]} 41. Qxf6 {[%clk 0:00:21]}  Rxf6 {[%clk 0:00:15]} 42. Rxf6 {[%clk 0:00:22]}  Nxg4 {[%clk 0:00:09]} 43. Rc6 {[%clk 0:00:17]}  Ne5 {[%clk 0:00:07]} 44. Rc7 {[%clk 0:00:17]}  b5 {[%clk 0:00:06]} 45. e4 {[%clk 0:00:17]}  b4 {[%clk 0:00:06]} 46. Kf2 {[%clk 0:00:18]}  a5 {[%clk 0:00:05]} 47. Ke3 {[%clk 0:00:18]}  a4 {[%clk 0:00:05]} 48. Rc5 {[%clk 0:00:15]}  b3 {[%clk 0:00:04]} 49. axb3 {[%clk 0:00:11]}  cxb3 {[%clk 0:00:04]} 50. Kd4 {[%clk 0:00:10]}  b2 {[%clk 0:00:02]} 51. Rb5 {[%clk 0:00:09]}  a3 {[%clk 0:00:03]} 52. Kc3 {[%clk 0:00:09]}  Ng4 {[%clk 0:00:03]} 53. Kc2 {[%clk 0:00:08]}  Ne3+ {[%clk 0:00:03]} 54. Kb1 {[%clk 0:00:06]}  Kf7 {[%clk 0:00:04]} 55. Ka2 {[%clk 0:00:06]}  Nxg2 {[%clk 0:00:04]} 56. Kxa3 {[%clk 0:00:06]}  Kf6 {[%clk 0:00:04]} 57. Kxb2 {[%clk 0:00:05]}  Ne3 {[%clk 0:00:05]} 58. Kc3 {[%clk 0:00:05]}  g4 {[%clk 0:00:05]} 59. Kd4 {[%clk 0:00:05]}  Nc2+ {[%clk 0:00:05]} 60. Kd3 {[%clk 0:00:05]}  Na3 {[%clk 0:00:04]} 61. Rb3 {[%clk 0:00:03]}  g3 {[%clk 0:00:04]} 62. Rxa3 {[%clk 0:00:03]}  g2 {[%clk 0:00:05]} 63. Ra1 {[%clk 0:00:03]}  Ke5 {[%clk 0:00:06]} 64. Rg1 {[%clk 0:00:04]}  Kf4 {[%clk 0:00:06]} 65. Rxg2 {[%clk 0:00:04]}  Kf3 {[%clk 0:00:07]} 66. Re2 {[%clk 0:00:03]}  Kf4 {[%clk 0:00:07]} 67. e5 {[%clk 0:00:00]}  Kf3 {[%clk 0:00:08]} 1/2-1/2


[Site "https://www.chess.com"]

[Event "Titled Tuesday Blitz August 1 Early 2023"]
[White "Djordjevic, Vuk"]
[Black "Zhigalko, Sergei"]
[WhiteFideId "902098"]
[BlackFideId "13502956"]
[WhiteElo "2760"]
[BlackElo "2897"]
[Result "0-1"]
[Round "9"]
[TimeControl "180+1"]
[Date "2023.08.01"]
[WhiteClock "0:00:02"]
[BlackClock "0:00:12"]
[Board "18"]

1. d4 {[%clk 0:03:00]}  Nf6 {[%clk 0:02:59]} 2. Bg5 {[%clk 0:03:01]}  d5 {[%clk 0:02:59]} 3. Bxf6 {[%clk 0:03:01]}  exf6 {[%clk 0:03:00]} 4. e3 {[%clk 0:03:01]}  Bd6 {[%clk 0:03:00]} 5. c4 {[%clk 0:03:01]}  dxc4 {[%clk 0:03:00]} 6. Bxc4 {[%clk 0:03:02]}  O-O {[%clk 0:03:01]} 7. Nc3 {[%clk 0:03:02]}  Nd7 {[%clk 0:03:00]} 8. Nf3 {[%clk 0:03:02]}  f5 {[%clk 0:02:59]} 9. O-O {[%clk 0:03:02]}  Nf6 {[%clk 0:02:59]} 10. Rb1 {[%clk 0:02:59]}  c6 {[%clk 0:02:54]} 11. Qc2 {[%clk 0:02:54]}  Qe7 {[%clk 0:02:54]} 12. Rfd1 {[%clk 0:02:52]}  Bd7 {[%clk 0:02:50]} 13. a3 {[%clk 0:02:45]}  Ne4 {[%clk 0:02:42]} 14. Bf1 {[%clk 0:02:38]}  Rad8 {[%clk 0:02:39]} 15. g3 {[%clk 0:02:37]}  Rfe8 {[%clk 0:02:31]} 16. Bg2 {[%clk 0:02:24]}  g6 {[%clk 0:02:27]} 17. Ne1 {[%clk 0:02:23]}  h5 {[%clk 0:02:19]} 18. Nd3 {[%clk 0:02:17]}  h4 {[%clk 0:02:19]} 19. Nxe4 {[%clk 0:02:17]}  fxe4 {[%clk 0:02:19]} 20. Nc5 {[%clk 0:02:17]}  Bf5 {[%clk 0:02:19]} 21. b4 {[%clk 0:02:16]}  b6 {[%clk 0:02:12]} 22. Nb3 {[%clk 0:02:13]}  Rc8 {[%clk 0:02:10]} 23. Rdc1 {[%clk 0:01:38]}  Qg5 {[%clk 0:02:05]} 24. Qe2 {[%clk 0:01:37]}  Bg4 {[%clk 0:02:01]} 25. Qf1 {[%clk 0:01:27]}  Kg7 {[%clk 0:01:56]} 26. Nd2 {[%clk 0:01:26]}  hxg3 {[%clk 0:01:29]} 27. Nxe4 {[%clk 0:01:08]}  gxf2+ {[%clk 0:01:19]} 28. Nxf2 {[%clk 0:00:34]}  Qxe3 {[%clk 0:00:44]} 29. Rxc6 {[%clk 0:00:06]}  Be2 {[%clk 0:00:23]} 30. Qc1 {[%clk 0:00:05]}  Bxh2+ {[%clk 0:00:23]} 31. Kxh2 {[%clk 0:00:05]}  Qxf2 {[%clk 0:00:23]} 32. Rxc8 {[%clk 0:00:03]}  Bf3 {[%clk 0:00:12]} 33. Qg1 {[%clk 0:00:02]}  Qh4+ {[%clk 0:00:10]} 34. Bh3 {[%clk 0:00:02]}  Re2+ {[%clk 0:00:11]} 35. Qg2 {[%clk 0:00:01]}  Rxg2+ {[%clk 0:00:11]} 36. Kh1 {[%clk 0:00:02]}  Qxh3# {[%clk 0:00:12]} 0-1


[Site "https://www.chess.com"]

[Event "Titled Tuesday Blitz August 1 Early 2023"]
[White "Kovalenko, Igor"]
[Black "Brodowski, Piotr"]
[WhiteFideId "14117908"]
[BlackFideId "1124480"]
[WhiteElo "2861"]
[BlackElo "2726"]
[Result "1-0"]
[Round "9"]
[TimeControl "180+1"]
[Date "2023.08.01"]
[WhiteClock "0:01:41"]
[BlackClock "0:00:02"]
[Board "20"]

1. c4 {[%clk 0:02:51]}  e5 {[%clk 0:02:55]} 2. Nc3 {[%clk 0:02:51]}  Nc6 {[%clk 0:02:55]} 3. g3 {[%clk 0:02:50]}  Bc5 {[%clk 0:02:54]} 4. Bg2 {[%clk 0:02:51]}  a6 {[%clk 0:02:54]} 5. a3 {[%clk 0:02:50]}  Ba7 {[%clk 0:02:52]} 6. b4 {[%clk 0:02:49]}  d6 {[%clk 0:02:52]} 7. e3 {[%clk 0:02:48]}  Nge7 {[%clk 0:02:37]} 8. Bb2 {[%clk 0:02:47]}  O-O {[%clk 0:02:35]} 9. Nge2 {[%clk 0:02:46]}  Be6 {[%clk 0:02:33]} 10. Nd5 {[%clk 0:02:41]}  f5 {[%clk 0:02:28]} 11. d3 {[%clk 0:02:32]}  Rb8 {[%clk 0:02:16]} 12. Qd2 {[%clk 0:02:31]}  b5 {[%clk 0:02:06]} 13. Rc1 {[%clk 0:02:30]}  bxc4 {[%clk 0:01:49]} 14. dxc4 {[%clk 0:02:31]}  Ng6 {[%clk 0:01:48]} 15. O-O {[%clk 0:02:28]}  Nce7 {[%clk 0:01:47]} 16. Kh1 {[%clk 0:02:23]}  c6 {[%clk 0:01:32]} 17. Nxe7+ {[%clk 0:02:23]}  Nxe7 {[%clk 0:01:33]} 18. f4 {[%clk 0:02:22]}  e4 {[%clk 0:01:20]} 19. Nd4 {[%clk 0:02:19]}  Bd7 {[%clk 0:01:13]} 20. Nb3 {[%clk 0:02:15]}  Nc8 {[%clk 0:01:11]} 21. c5 {[%clk 0:02:13]}  Be6 {[%clk 0:01:08]} 22. Qc3 {[%clk 0:02:13]}  Rf7 {[%clk 0:01:02]} 23. Na5 {[%clk 0:02:13]}  Bd5 {[%clk 0:00:56]} 24. Rfd1 {[%clk 0:02:12]}  Rc7 {[%clk 0:00:38]} 25. Bh3 {[%clk 0:01:54]}  dxc5 {[%clk 0:00:34]} 26. Nxc6 {[%clk 0:01:53]}  cxb4 {[%clk 0:00:25]} 27. Qe5 {[%clk 0:01:52]}  Qd6 {[%clk 0:00:23]} 28. Rxd5 {[%clk 0:01:48]}  Qxe5 {[%clk 0:00:20]} 29. Rd8+ {[%clk 0:01:47]}  Kf7 {[%clk 0:00:16]} 30. Nxe5+ {[%clk 0:01:47]}  Ke7 {[%clk 0:00:17]} 31. Rxc7+ {[%clk 0:01:46]}  Kxd8 {[%clk 0:00:18]} 32. Rxa7 {[%clk 0:01:46]}  bxa3 {[%clk 0:00:18]} 33. Nc6+ {[%clk 0:01:43]}  Ke8 {[%clk 0:00:02]} 34. Nxb8 {[%clk 0:01:41]} 1-0


[Site "https://www.chess.com"]

[Event "Titled Tuesday Blitz August 1 Early 2023"]
[White "Rasulov, Vugar"]
[Black "Agibileg, Uurtsaikh"]
[WhiteFideId "13402390"]
[BlackFideId "4901606"]
[WhiteElo "2856"]
[BlackElo "2708"]
[Result "0-1"]
[Round "9"]
[TimeControl "180+1"]
[Date "2023.08.01"]
[WhiteClock "0:00:15"]
[BlackClock "0:00:18"]
[Board "22"]

1. Nf3 {[%clk 0:03:00]}  Nf6 {[%clk 0:02:59]} 2. c4 {[%clk 0:03:01]}  g6 {[%clk 0:02:58]} 3. b4 {[%clk 0:02:59]}  Bg7 {[%clk 0:02:57]} 4. Bb2 {[%clk 0:03:00]}  O-O {[%clk 0:02:56]} 5. e3 {[%clk 0:03:00]}  d6 {[%clk 0:02:46]} 6. Be2 {[%clk 0:03:00]}  a5 {[%clk 0:02:46]} 7. b5 {[%clk 0:02:59]}  e5 {[%clk 0:02:44]} 8. d3 {[%clk 0:02:58]}  a4 {[%clk 0:02:34]} 9. O-O {[%clk 0:02:57]}  Nbd7 {[%clk 0:02:33]} 10. Na3 {[%clk 0:02:55]}  Nc5 {[%clk 0:02:24]} 11. d4 {[%clk 0:02:51]}  exd4 {[%clk 0:02:21]} 12. exd4 {[%clk 0:02:52]}  Nce4 {[%clk 0:02:16]} 13. d5 {[%clk 0:02:50]}  Bg4 {[%clk 0:02:12]} 14. h3 {[%clk 0:02:46]}  Bxf3 {[%clk 0:02:11]} 15. Bxf3 {[%clk 0:02:47]}  Nc5 {[%clk 0:02:10]} 16. Nc2 {[%clk 0:02:41]}  Nfd7 {[%clk 0:02:09]} 17. Bxg7 {[%clk 0:02:38]}  Kxg7 {[%clk 0:02:10]} 18. Re1 {[%clk 0:02:32]}  Qf6 {[%clk 0:02:09]} 19. Ne3 {[%clk 0:02:29]}  h5 {[%clk 0:02:08]} 20. Bxh5 {[%clk 0:02:18]}  gxh5 {[%clk 0:01:57]} 21. Qxh5 {[%clk 0:02:19]}  Rh8 {[%clk 0:01:49]} 22. Qg4+ {[%clk 0:02:09]}  Kf8 {[%clk 0:01:47]} 23. Rad1 {[%clk 0:01:58]}  Ne5 {[%clk 0:01:37]} 24. Qd4 {[%clk 0:01:58]}  Re8 {[%clk 0:01:33]} 25. f4 {[%clk 0:01:39]}  Ned7 {[%clk 0:01:14]} 26. Qxf6 {[%clk 0:01:38]}  Nxf6 {[%clk 0:01:15]} 27. Kf2 {[%clk 0:01:38]}  Nfe4+ {[%clk 0:01:11]} 28. Kf3 {[%clk 0:01:37]}  f6 {[%clk 0:01:00]} 29. Nf5 {[%clk 0:01:32]}  Kf7 {[%clk 0:00:57]} 30. Re3 {[%clk 0:01:32]}  Rh5 {[%clk 0:00:44]} 31. Nd4 {[%clk 0:01:32]}  f5 {[%clk 0:00:40]} 32. b6 {[%clk 0:01:30]}  cxb6 {[%clk 0:00:37]} 33. Re2 {[%clk 0:01:11]}  Rg8 {[%clk 0:00:33]} 34. Ke3 {[%clk 0:01:10]}  Nc3 {[%clk 0:00:30]} 35. Rg1 {[%clk 0:01:03]}  Rg3+ {[%clk 0:00:28]} 36. Nf3 {[%clk 0:00:46]}  Nxe2 {[%clk 0:00:25]} 37. Kxe2 {[%clk 0:00:47]}  Ne4 {[%clk 0:00:23]} 38. Ke3 {[%clk 0:00:42]}  Rh8 {[%clk 0:00:20]} 39. Kd4 {[%clk 0:00:39]}  Rc8 {[%clk 0:00:20]} 40. h4 {[%clk 0:00:28]}  Kf6 {[%clk 0:00:20]} 41. h5 {[%clk 0:00:27]}  Rh8 {[%clk 0:00:20]} 42. Rb1 {[%clk 0:00:26]}  Rxg2 {[%clk 0:00:20]} 43. Rxb6 {[%clk 0:00:27]}  Rxa2 {[%clk 0:00:19]} 44. Rxb7 {[%clk 0:00:27]}  Rf2 {[%clk 0:00:19]} 45. Ne5 {[%clk 0:00:20]}  dxe5+ {[%clk 0:00:18]} 46. fxe5+ {[%clk 0:00:21]}  Kg5 {[%clk 0:00:19]} 47. Rg7+ {[%clk 0:00:21]}  Kf4 {[%clk 0:00:18]} 48. e6 {[%clk 0:00:15]}  Rd2# {[%clk 0:00:18]} 0-1


[Site "https://www.chess.com"]

[Event "Titled Tuesday Blitz August 1 Early 2023"]
[White "Iskusnyh, Sergei"]
[Black "Kazakouski, Valery"]
[WhiteFideId "4120027"]
[BlackFideId "13507443"]
[WhiteElo "2655"]
[BlackElo "2852"]
[Result "0-1"]
[Round "9"]
[TimeControl "180+1"]
[Date "2023.08.01"]
[WhiteClock "0:00:03"]
[BlackClock "0:00:41"]
[Board "23"]

1. d4 {[%clk 0:03:00]}  Nf6 {[%clk 0:03:00]} 2. c4 {[%clk 0:03:00]}  e6 {[%clk 0:03:00]} 3. g3 {[%clk 0:03:00]}  d5 {[%clk 0:03:00]} 4. Bg2 {[%clk 0:02:59]}  dxc4 {[%clk 0:03:01]} 5. Nf3 {[%clk 0:02:58]}  c6 {[%clk 0:03:01]} 6. a4 {[%clk 0:02:55]}  Bb4+ {[%clk 0:03:01]} 7. Bd2 {[%clk 0:02:44]}  a5 {[%clk 0:03:01]} 8. O-O {[%clk 0:02:38]}  Bxd2 {[%clk 0:02:49]} 9. Qxd2 {[%clk 0:02:32]}  Ne4 {[%clk 0:02:21]} 10. Qc2 {[%clk 0:02:17]}  Nd6 {[%clk 0:02:20]} 11. Na3 {[%clk 0:02:10]}  b5 {[%clk 0:02:13]} 12. Ne5 {[%clk 0:02:03]}  Ra6 {[%clk 0:02:12]} 13. b3 {[%clk 0:00:54]}  cxb3 {[%clk 0:02:12]} 14. Qxb3 {[%clk 0:00:53]}  b4 {[%clk 0:02:11]} 15. Nc2 {[%clk 0:00:48]}  O-O {[%clk 0:02:07]} 16. Rfd1 {[%clk 0:00:47]}  Bb7 {[%clk 0:02:02]} 17. Ne1 {[%clk 0:00:45]}  Nd7 {[%clk 0:01:44]} 18. Rac1 {[%clk 0:00:44]}  Nf6 {[%clk 0:01:33]} 19. Nxc6 {[%clk 0:00:41]}  Qa8 {[%clk 0:01:31]} 20. d5 {[%clk 0:00:33]}  exd5 {[%clk 0:01:23]} 21. Nd4 {[%clk 0:00:29]}  Nde4 {[%clk 0:01:20]} 22. Nd3 {[%clk 0:00:28]}  Rc8 {[%clk 0:01:17]} 23. Rxc8+ {[%clk 0:00:25]}  Qxc8 {[%clk 0:01:15]} 24. Rc1 {[%clk 0:00:25]}  Nc3 {[%clk 0:01:15]} 25. Nxb4 {[%clk 0:00:23]}  axb4 {[%clk 0:00:43]} 26. Qxb4 {[%clk 0:00:22]}  Rxa4 {[%clk 0:00:43]} 27. Qxc3 {[%clk 0:00:11]}  Qxc3 {[%clk 0:00:40]} 28. Rxc3 {[%clk 0:00:12]}  Rxd4 {[%clk 0:00:40]} 29. Rc7 {[%clk 0:00:12]}  Rb4 {[%clk 0:00:40]} 30. Bf3 {[%clk 0:00:10]}  g5 {[%clk 0:00:39]} 31. h3 {[%clk 0:00:08]}  Kg7 {[%clk 0:00:39]} 32. Kg2 {[%clk 0:00:08]}  h5 {[%clk 0:00:39]} 33. e3 {[%clk 0:00:07]}  g4 {[%clk 0:00:39]} 34. hxg4 {[%clk 0:00:07]}  hxg4 {[%clk 0:00:40]} 35. Be2 {[%clk 0:00:03]}  d4+ {[%clk 0:00:41]} 0-1


[Site "https://www.chess.com"]

[Event "Titled Tuesday Blitz August 1 Early 2023"]
[White "Souleidis, Georgios"]
[Black "Mitrabha, Guha"]
[WhiteFideId "4206827"]
[BlackFideId "5057000"]
[WhiteElo "2562"]
[BlackElo "2848"]
[Result "0-1"]
[Round "9"]
[TimeControl "180+1"]
[Date "2023.08.01"]
[WhiteClock "0:00:00"]
[BlackClock "0:00:17"]
[Board "24"]

1. e4 {[%clk 0:03:00]}  c6 {[%clk 0:02:59]} 2. d4 {[%clk 0:03:00]}  d5 {[%clk 0:02:59]} 3. e5 {[%clk 0:03:00]}  Bf5 {[%clk 0:02:57]} 4. h4 {[%clk 0:03:00]}  h5 {[%clk 0:02:56]} 5. c4 {[%clk 0:03:00]}  e6 {[%clk 0:02:54]} 6. Nc3 {[%clk 0:03:00]}  dxc4 {[%clk 0:02:54]} 7. Bxc4 {[%clk 0:03:00]}  Nd7 {[%clk 0:02:55]} 8. Nf3 {[%clk 0:02:56]}  Bg4 {[%clk 0:02:53]} 9. Bg5 {[%clk 0:02:56]}  Be7 {[%clk 0:02:51]} 10. Ne4 {[%clk 0:02:53]}  Qa5+ {[%clk 0:02:44]} 11. Kf1 {[%clk 0:02:43]}  Nb6 {[%clk 0:02:31]} 12. Bb3 {[%clk 0:02:23]}  Nc8 {[%clk 0:02:11]} 13. Qd3 {[%clk 0:02:04]}  Nh6 {[%clk 0:02:07]} 14. Bxe7 {[%clk 0:01:58]}  Kxe7 {[%clk 0:02:05]} 15. Qe3 {[%clk 0:01:55]}  Nf5 {[%clk 0:01:58]} 16. Qg5+ {[%clk 0:01:51]}  Kf8 {[%clk 0:01:57]} 17. Nc5 {[%clk 0:01:14]}  Nce7 {[%clk 0:01:49]} 18. Qf4 {[%clk 0:00:32]}  Bxf3 {[%clk 0:01:38]} 19. gxf3 {[%clk 0:00:31]}  b6 {[%clk 0:01:22]} 20. Ne4 {[%clk 0:00:20]}  Rh6 {[%clk 0:01:10]} 21. Ng5 {[%clk 0:00:18]}  Rd8 {[%clk 0:01:06]} 22. Rd1 {[%clk 0:00:17]}  Qb4 {[%clk 0:01:02]} 23. Kg2 {[%clk 0:00:11]}  Rxd4 {[%clk 0:00:58]} 24. Rxd4 {[%clk 0:00:11]}  Qxd4 {[%clk 0:00:59]} 25. Qc1 {[%clk 0:00:02]}  Nxh4+ {[%clk 0:00:56]} 26. Kh3 {[%clk 0:00:02]}  Nhf5 {[%clk 0:00:48]} 27. Rd1 {[%clk 0:00:03]}  Qh4+ {[%clk 0:00:46]} 28. Kg2 {[%clk 0:00:04]}  Nd5 {[%clk 0:00:22]} 29. Nh3 {[%clk 0:00:02]}  Rg6+ {[%clk 0:00:21]} 30. Kh2 {[%clk 0:00:02]}  Kg8 {[%clk 0:00:18]} 31. Qxc6 {[%clk 0:00:00]}  Nf4 {[%clk 0:00:17]} 0-1


[Site "https://www.chess.com"]